Cogmind - Beta 10.2 *** ADVENTURER MODE // 2021.09.05 @ 18:36:25 Player: Jezoensis Result: Self-destructed Performance ------------- Evolutions (5) 2500 Regions Visited (13) 2600 Robots Destroyed (114) 570 Value Destroyed (3411) 3411 Prototype IDs (41) 820 Alien Tech Used (0) 0 Bonus (1894) 1894 TOTAL SCORE: 11795 Bonus ------- Follower Combat Kills 172 Aligned with FarCom 300 Met Warlord at Base 500 MAIN.C Attacked Warlord 500 Warlord Defense Kill 944 Friendly Fire -522 Cogmind --------- Core Integrity 634/1000 Matter 300/300 Energy 228/500 System Corruption 2% Temperature Cool (29) Movement Treading (162) Location -5/Warlord Parts ------- > --- POWER (1) -------- F-cell Engine > --- PROPULSION (5) --- Medium Treads Improved Medium Treads Improved Medium Treads Armored Medium Treads > --- UTILITY (8) ------ Large Storage Unit High-capacity Storage Unit High-capacity Storage Unit Improved Core Analyzer Improved Medium Armor Plating Improved Thermal Shield Long-range Tractor Beam > --- WEAPON (3) ------- Long-range Proton Cannon > --- INVENTORY (26) --- F-cell Engine Improved Quantum Reactor Improved Treads Improved Treads Armored Treads High-capacity Storage Unit High-capacity Storage Unit Matter Compressor (250) Long-range Terrain Scanner Long-range Terrain Scanner Improved Kinecellerator Improved Kinecellerator Improved Weapon Cycler Improved Weapon Cycler Makeshift Transmission Jammer Makeshift Transmission Jammer Improved Utility Shielding Improved Utility Shielding Experimental Weapon Shielding Experimental Weapon Shielding Improved Medium Armor Plating Helical Railgun Proton Missile Launcher Vortex Catalyst Activator Ripper Peak State ------------ > --- POWER ------------ F-cell Engine > --- PROPULSION ------- Improved Treads Medium Treads Improved Medium Treads Improved Medium Treads Armored Medium Treads > --- UTILITY ---------- Large Storage Unit High-capacity Storage Unit High-capacity Storage Unit Improved Core Analyzer Experimental Weapon Shielding Improved Medium Armor Plating Improved Thermal Shield Long-range Tractor Beam > --- WEAPON ----------- Vortex Rail Long-range Proton Cannon Proton Missile Launcher > --- INVENTORY -------- F-cell Engine Improved Quantum Reactor Improved Treads Improved Treads Armored Treads High-capacity Storage Unit High-capacity Storage Unit Matter Compressor Long-range Terrain Scanner Long-range Terrain Scanner Improved Kinecellerator Improved Kinecellerator Improved Weapon Cycler Improved Weapon Cycler Makeshift Transmission Jammer Makeshift Transmission Jammer Improved Utility Shielding Improved Utility Shielding Experimental Weapon Shielding Experimental Weapon Shielding Improved Medium Armor Plating Vortex Rail Helical Railgun Vortex Catalyst Activator Ripper [Rating: 88] Favorites ----------- Power F-cell Engine Engine F-cell Engine Propulsion Improved Treads Treads Improved Treads Utility High-capacity Storage Unit Device Improved Terrain Scanner Storage High-capacity Storage Unit Processor Terrain Scan Processor Hackware System Shield Protection Improved Medium Armor Plating Weapon Heavy Assault Rifle Energy Gun Heavy EM Pulse Gun Energy Cannon Long-range Proton Cannon Ballistic Gun Heavy Assault Rifle Ballistic Cannon Hypervelocity Gauss Cannon Launcher Proton Missile Launcher Special Weapon Mining Laser Slashing Weapon Ripper Build | -11 -10 -10 -9 -9 -9 -8 -8 -7 -6 -5 -5 -5 -5 ------- Run | Scr Mat Min Mat Min Exi Min Mat Fac Fac Fac Upp Upp War Slots Evolved 10 | . . . 2 . . . 2 2 2 2 . . . Power . | . . . . . . . . . . . . . . Propulsion 3 | . . . 1 . . . . 1 . 1 . . . Utility 6 | . . . 1 . . . 1 1 2 1 . . . Weapon 1 | . . . . . . . 1 . . . . . . Parts Attached 208 | 8 8 . 10 2 1 1 13 45 18 55 10 19 18 Power 8 | 1 1 . 1 . 1 . 2 1 . 1 . . . Engine 8 | 1 1 . 1 . 1 . 2 1 . 1 . . . Core . | . . . . . . . . . . . . . . Reactor . | . . . . . . . . . . . . . . Propulsion 22 | 2 . . 1 . . 1 . 5 1 5 . 4 3 Treads 22 | 2 . . 1 . . 1 . 5 1 5 . 4 3 Leg . | . . . . . . . . . . . . . . Wheel . | . . . . . . . . . . . . . . Hover . | . . . . . . . . . . . . . . Flight . | . . . . . . . . . . . . . . Utility 84 | 2 3 . 2 . . . 3 18 9 25 5 9 8 Device 44 | 1 1 . . . . . . 7 6 13 4 6 6 Storage 11 | 1 2 . 1 . . . 2 2 1 2 . . . Processor 4 | . . . 1 . . . . . . 3 . . . Hackware 3 | . . . . . . . . 2 1 . . . . Protection 22 | . . . . . . . 1 7 1 7 1 3 2 Artifact . | . . . . . . . . . . . . . . Weapon 94 | 3 4 . 6 2 . . 8 21 8 24 5 6 7 Energy Gun 37 | 2 2 . 4 1 . . 1 9 3 9 . 3 3 Energy Cannon 3 | . . . . . . . . . . 1 . . 2 Ballistic Gun 20 | 1 . . 1 . . . 4 4 2 4 3 1 . Ballistic Cannon 1 | . . . . . . . . . . . . . 1 Launcher 10 | . 1 . . 1 . . . 1 1 1 2 2 1 Special Weapon 3 | . 1 . 1 . . . . . . 1 . . . Impact Weapon . | . . . . . . . . . . . . . . Slashing Weapon 20 | . . . . . . . 3 7 2 8 . . . Piercing Weapon . | . . . . . . . . . . . . . . Special Melee Weapon . | . . . . . . . . . . . . . . Unidentified Prototypes 7 | . . . 1 . . . 1 . . 3 . . 2 Parts Lost 18 | . . . . . . . 3 . 1 3 . 7 4 Power . | . . . . . . . . . . . . . . Propulsion 5 | . . . . . . . . . . 1 . 3 1 Utility 4 | . . . . . . . 1 . . . . 1 2 Weapon 9 | . . . . . . . 2 . 1 2 . 3 1 Highest Loss Streak 7 | . . . . . . . 2 . 1 2 . 7 3 Average Slot Usage (%) 99 | . 100 100 94 100 99 100 99 99 99 99 100 98 99 Engine 7 | . 14 14 11 11 10 11 9 7 6 5 5 5 5 Treads 28 | . 28 28 27 33 33 33 27 30 25 28 29 28 29 Device 10 | . 14 14 11 11 11 11 9 5 12 10 16 15 10 Storage 14 | . 14 14 11 11 11 11 13 15 13 17 17 17 17 Processor 7 | . . . 11 11 11 11 9 7 6 5 11 11 10 Hackware 4 | . . . . . . . . 6 13 10 . . . Protection 1 | . . . . . . . 4 2 . . . 1 5 Energy Gun 6 | . 12 14 10 10 11 11 10 4 3 2 . 4 6 Ballistic Gun 9 | . 14 14 11 11 11 11 13 14 12 9 16 3 . Launcher 1 | . . . . 1 . . . . . . . 7 8 Slashing Weapon 1 | . . . . . . . 2 3 2 2 . . . Naked Turns . | . . . . . . . . . . . . . . Heaviest Build 128 | 12 40 24 46 47 46 46 52 91 92 127 108 117 128 Greatest Support 138 | 40 40 40 60 60 60 60 60 91 91 122 119 119 138 Greatest Overweight (x) 1 | . . . . . . . . 1 1 1 . . 1 Average Overweight (x) . | . . . . . . . . . . . . . . Largest Inventory Capacity 28 | 6 12 10 12 12 12 12 18 20 20 28 26 26 26 Average Capacity 20 | 5 10 10 11 12 12 12 13 19 20 27 26 26 26 Most Carried 26 | 5 10 10 12 12 12 12 16 20 20 26 26 25 26 Average Carried 18 | 3 8 10 10 11 11 12 12 19 19 23 25 21 24 Final Capacity 26 | 6 10 10 12 12 12 12 16 20 20 26 26 26 26 Final Carried 26 | 5 10 10 12 12 12 12 16 20 20 26 25 20 26 Class Distribution -------------------- 21% | Hacker-Assassin 21% | Mutant 18% | Hacker-Skirmisher 14% | Hauler-Skirmisher 10% | Hauler-Mutant 3% | Skirmisher 3% | Scavenger-Skirmisher Dominant Class ---------------- Mutant | -10/Materials Mutant | -10/Mines Mutant | -9/Materials Mutant | -9/Mines Mutant | -9/Exiles Skirmisher | -8/Mines Scavenger-Skirmisher | -8/Materials Hacker-Skirmisher | -7/Factory Hacker-Skirmisher | -6/Factory Hacker-Assassin | -5/Factory Hauler-Skirmisher | -5/Upper Caves Hauler-Mutant | -5/Upper Caves Hauler-Mutant | -5/Warlord Resources | -11 -10 -10 -9 -9 -9 -8 -8 -7 -6 -5 -5 -5 -5 ----------- Run | Scr Mat Min Mat Min Exi Min Mat Fac Fac Fac Upp Upp War Matter Collected 3803 | 271 214 15 166 . . 82 208 589 469 818 171 421 379 Remotely 1135 | . . . . . . . . . 339 181 104 172 339 Salvage Created 4787 | 181 406 118 566 10 . . 340 606 509 1054 192 257 548 Parts 261 | 15 36 9 24 5 . . 23 29 22 57 6 13 22 Haulers Intercepted 4 | . 1 . . . . . 1 2 . . . . . Recyclers Shooed 6 | . . 1 2 . . . . 1 . 2 . . . Parts Field Recycled . | . . . . . . . . . . . . . . Retrieved Matter . | . . . . . . . . . . . . . . Parts Self-Destructed 66 | . . . . . . . . . . . 2 7 57 Prevented 28 | . . . . . . . . . . . . 6 22 Kills | -11 -10 -10 -9 -9 -9 -8 -8 -7 -6 -5 -5 -5 -5 ------- Run | Scr Mat Min Mat Min Exi Min Mat Fac Fac Fac Upp Upp War Combat Hostiles Destroyed 76 | . 9 3 8 3 . . 7 6 4 18 4 7 7 Guns 45 | . 6 3 7 . . . 6 4 4 10 . 3 2 Cannons 2 | . . . . . . . . . . 1 . . 1 AOE 25 | . 3 . 1 3 . . . 2 . 6 4 3 3 Classes Destroyed 18 | 2 3 . 3 . . . 1 2 . 3 1 . 3 Worker 3 | . . . . . . . 1 . 1 1 . . . Builder 1 | . . . . . . . . . . 1 . . . Tunneler 7 | 5 1 . . . . . 1 . . . . . . Hauler 4 | . 1 . . . . . 1 2 . . . . . Recycler 10 | 1 2 1 2 . . . . 2 1 1 . . . Operator 1 | . . . . . . . . 1 . . . . . Watcher 9 | . 3 . . . . . 1 . 1 4 . . . Swarmer 36 | . 9 3 . 3 . . 3 . . 9 4 4 1 Grunt 12 | . . . 4 . . . 2 1 3 . . . 2 Duelist 3 | . . . 1 . . . . 1 1 . . . . Sentry 11 | . . . 3 . . . 2 3 . 3 . . . Demolisher 1 | . . . . . . . . . . . . . 1 Specialist 1 | . . . . . . . . . . . . . 1 Hunter 5 | . . . . . . . . 1 . 4 . . . Programmer 4 | . . . . . . . . . . 1 . 2 1 Behemoth 2 | . . . . . . . . . . 1 . 1 . Executioner 1 | . . . . . . . . . . . . . 1 Samaritan 2 | . . . . . . . . . . . 2 . . Thug 3 | . . . . . . . . . 1 . . . 2 Best Kill Streak 9 | 6 4 5 3 3 . . 9 2 2 9 4 2 3 Combat Bots Only 9 | . 3 3 3 3 . . 5 2 2 9 4 2 3 Max Kills in Single Turn 5 | 1 2 2 1 2 . . 3 1 2 5 3 2 2 Gunslinging 1 | . 1 1 . . . . . . . . . . . Exploded 5 | . 2 . 1 2 . . . 1 . 5 3 2 1 Melee . | . . . . . . . . . . . . . . Uniques/NPCs Destroyed . | . . . . . . . . . . . . . . Combat | -11 -10 -10 -9 -9 -9 -8 -8 -7 -6 -5 -5 -5 -5 -------- Run | Scr Mat Min Mat Min Exi Min Mat Fac Fac Fac Upp Upp War Damage Taken 5134 | . 91 58 236 30 . . 275 373 479 1156 60 1144 1232 Core 489 | . 8 . 31 . . . 21 18 45 111 . 120 135 Absorbed by Shields . | . . . . . . . . . . . . . . Core Remaining (%) 95 | 100 . 96 . . . 92 96 97 94 . . . . Volleys Fired 230 | 10 27 5 23 3 . . 15 27 16 49 4 26 25 Largest 3 | 2 2 2 2 2 . . 3 3 3 3 3 3 2 Hottest 281 | 80 100 60 100 56 . . 113 150 124 164 100 281 120 Shots Fired 542 | 20 48 10 45 6 . . 45 80 48 127 12 61 40 Gun 470 | 20 40 10 44 3 . . 45 79 46 116 8 44 15 Cannon 17 | . . . . . . . . . . 9 . . 8 Launcher 50 | . 4 . . 3 . . . 1 2 2 4 17 17 Special 5 | . 4 . 1 . . . . . . . . . . Kinetic 270 | 6 21 5 22 3 . . 26 53 30 71 8 25 . Thermal 45 | . 4 . 3 . . . . 7 . 12 . 19 . Explosive 18 | . 4 . . 3 . . . 1 . 2 2 6 . Electromagnetic 194 | 14 19 5 20 . . . 19 19 18 42 2 11 25 Entropic 15 | . . . . . . . . . . . . . 15 Robot Hit Streak 82 | 14 10 9 24 4 . . 15 82 23 27 13 36 8 Robot Miss Streak 3 | 1 3 2 2 . . . 1 2 1 1 1 2 2 Penetration Max 2 | . . . . . . . . . . 1 . 1 2 Secondary Targets 6 | . 1 1 . . . . 2 . 1 1 . . . Max Gunslinging Chain 1 | . 1 1 . . . . 1 . 1 1 . . . Shots Hit Robots 427 | 19 31 7 35 4 . . 36 71 39 106 9 47 23 Core Hits 215 | 7 20 5 16 3 . . 16 32 17 47 9 14 29 Critical Hits 3 | . . . . . . . . 1 . 1 . . 1 Critical Kills 1 | . . . . . . . . . . . . . 1 Critical Parts Destroyed 1 | . . . . . . . . 1 . . . . . Melee Attacks 65 | . . . . . . . 9 16 8 32 . . . Impact . | . . . . . . . . . . . . . . Slashing 65 | . . . . . . . 9 16 8 32 . . . Piercing . | . . . . . . . . . . . . . . Sneak Attacks . | . . . . . . . . . . . . . . Combat Hostiles . | . . . . . . . . . . . . . . Follow-up Attacks . | . . . . . . . . . . . . . . Damage Inflicted 11821 | 245 663 125 562 241 . . 805 1410 887 2869 561 1544 1909 Guns 7488 | 245 370 83 527 13 . . 513 1119 790 2019 151 955 703 Cannons 487 | . . . . . . . . . . 315 . . 172 Explosions 3846 | . 293 42 35 228 . . 292 291 97 535 410 589 1034 Melee . | . . . . . . . . . . . . . . Ramming . | . . . . . . . . . . . . . . Kinetic 3497 | 72 153 35 229 13 . . 265 634 468 1001 151 476 . Thermal 1508 | . 47 42 72 . . . 90 330 . 355 . 479 93 Explosive 1988 | . 246 . . 228 . . 202 186 . 535 241 350 . Electromagnetic 4125 | 173 217 48 261 . . . 248 260 419 978 169 239 1113 Impact . | . . . . . . . . . . . . . . Slashing . | . . . . . . . . . . . . . . Piercing . | . . . . . . . . . . . . . . Entropic 703 | . . . . . . . . . . . . . 703 Highest Corruption 2 | . . . . . . . . . . . . 2 2 Average Corruption 1 | . . . . . . . . . . . . 1 1 Corruption Purged . | . . . . . . . . . . . . . . Overload Shots 6 | . . . . . . . . . . . . 6 . Overflow Damage 181 | . 20 . . 23 . . 37 . . . 52 36 13 Projectiles . | . . . . . . . . . . . . . . Explosions 181 | . 20 . . 23 . . 37 . . . 52 36 13 Melee . | . . . . . . . . . . . . . . Knockbacks . | . . . . . . . . . . . . . . Impact . | . . . . . . . . . . . . . . Kinetic . | . . . . . . . . . . . . . . Secondary . | . . . . . . . . . . . . . . Self-Inflicted Damage 311 | . . 16 32 7 . . 108 . 11 16 . 108 13 Shots 19 | . . 1 1 1 . . 2 . 2 1 . 10 1 Rammed . | . . . . . . . . . . . . . . Targets Rammed . | . . . . . . . . . . . . . . Kicked . | . . . . . . . . . . . . . . Crushed . | . . . . . . . . . . . . . . Highest Temperature 549 | 56 20 12 48 . . . 160 102 184 545 76 549 371 Average Temperature 102 | 26 10 12 20 . . . 67 35 59 110 30 276 59 Received Heat Transfer 681 | . . . 72 . . . 81 90 153 39 . 144 102 Effects 10 | . . . . . . . . . . . . 10 . Energy Bleed 1 | . . . . . . . . . . . . 1 . Matter Decay 1 | . . . . . . . . . . . . 1 . Short Circuit 2 | . . . . . . . . . . . . 2 . Damage (minor) 4 | . . . . . . . . . . . . 4 . Damage (major) 2 | . . . . . . . . . . . . 2 . Siege Activations . | . . . . . . . . . . . . . . Robots Corrupted 4 | . . . . . . . 1 . . 1 . 1 1 Combat Hostiles 4 | . . . . . . . 1 . . 1 . 1 1 Parts Fried 21 | 2 . . 1 . . . 2 . 2 8 . 1 5 Impact Corruptions . | . . . . . . . . . . . . . . Robots Melted . | . . . . . . . . . . . . . . Combat Hostiles . | . . . . . . . . . . . . . . Parts Melted 3 | . . . . . . . 1 1 . 1 . . . Heat Transferred 2383 | . . 50 124 . . . 150 575 . 725 . 709 50 Parts Sabotaged . | . . . . . . . . . . . . . . Parts Stolen . | . . . . . . . . . . . . . . Parts Stripped . | . . . . . . . . . . . . . . Power Chain Reactions 10 | . 1 1 1 . . . 2 2 . . . . 3 Missiles Intercepted . | . . . . . . . . . . . . . . Alert | -11 -10 -10 -9 -9 -9 -8 -8 -7 -6 -5 -5 -5 -5 ------- Run | Scr Mat Min Mat Min Exi Min Mat Fac Fac Fac Upp Upp War Peak Influence 355 | 30 355 81 302 178 . . 214 271 187 267 . . . Initial 99 | . 16 6 26 99 . . . 17 33 1 . . . Average 90 | 12 190 74 149 130 . . 58 89 56 80 . . . Maximum Alert Level 1 | . 1 . 1 . . . 1 1 . 1 . . . Low Security (%) 84 | 100 47 100 58 100 . 100 94 85 100 90 . . . Level 1 15 | . 52 . 41 . . . 5 14 . 9 . . . Level 2 . | . . . . . . . . . . . . . . Level 3 . | . . . . . . . . . . . . . . Level 4 . | . . . . . . . . . . . . . . Level 5 . | . . . . . . . . . . . . . . High Security . | . . . . . . . . . . . . . . Max Security . | . . . . . . . . . . . . . . Squads Dispatched 8 | . . . . . . . . 3 2 3 . . . Investigation 4 | . . . . . . . . 1 2 1 . . . Extermination 2 | . . . . . . . . 1 . 1 . . . Reinforcement 2 | . . . . . . . . 1 . 1 . . . Assault . | . . . . . . . . . . . . . . Garrison . | . . . . . . . . . . . . . . Intercept . | . . . . . . . . . . . . . . Construction Impeded 1 | . . . . . . . . 1 . . . . . Haulers Reinforced . | . . . . . . . . . . . . . . Stealth | -11 -10 -10 -9 -9 -9 -8 -8 -7 -6 -5 -5 -5 -5 --------- Run | Scr Mat Min Mat Min Exi Min Mat Fac Fac Fac Upp Upp War Distress Signals 2 | . . . . . . . 1 1 . . . . . Communications Jammed 1 | . . . . . . . . . . 1 . . . Distress Signals 1 | . . . . . . . . . . 1 . . . Times Spotted 132 | . 14 5 9 3 . . 9 12 9 29 4 9 29 Peak Tracking Total 10 | . 4 2 3 1 . . 5 3 3 10 4 4 10 Tactical Retreats 7 | . 1 . . . . . . . 2 1 . 1 2 Traps | -11 -10 -10 -9 -9 -9 -8 -8 -7 -6 -5 -5 -5 -5 ------- Run | Scr Mat Min Mat Min Exi Min Mat Fac Fac Fac Upp Upp War Traps Triggered 6 | . 1 . . . . . . 2 1 1 . . 1 Indirectly . | . . . . . . . . . . . . . . Trap Hack Attempts . | . . . . . . . . . . . . . . Triggered . | . . . . . . . . . . . . . . Disarmed . | . . . . . . . . . . . . . . Reprogrammed . | . . . . . . . . . . . . . . Reused . | . . . . . . . . . . . . . . Traps Extracted . | . . . . . . . . . . . . . . Installed . | . . . . . . . . . . . . . . Triggered 15 | . . . . . . . . . 1 . . 1 13 Machines | -11 -10 -10 -9 -9 -9 -8 -8 -7 -6 -5 -5 -5 -5 ---------- Run | Scr Mat Min Mat Min Exi Min Mat Fac Fac Fac Upp Upp War Machines Disabled 12 | . 1 . . 1 . . 4 1 2 1 . . 2 Max in Single Turn 2 | . 1 . . 1 . . 2 1 1 1 . . 2 Garrison Access 4 | . . . . . . . . 1 2 1 . . . Machines Sabotaged . | . . . . . . . . . . . . . . Garrisons Compromised . | . . . . . . . . . . . . . . Overloaded Fab Kills . | . . . . . . . . . . . . . . Fab Network Shutdowns . | . . . . . . . . . . . . . . Hacking | -11 -10 -10 -9 -9 -9 -8 -8 -7 -6 -5 -5 -5 -5 --------- Run | Scr Mat Min Mat Min Exi Min Mat Fac Fac Fac Upp Upp War Machines Accessed 46 | . 6 . 5 . 1 . 6 6 6 9 1 1 5 Terminals 33 | . 6 . 5 . . . 6 5 4 7 . . . Fabricators . | . . . . . . . . . . . . . . Repair Stations . | . . . . . . . . . . . . . . Recycling Units . | . . . . . . . . . . . . . . Scanalyzers 1 | . . . . . . . . . . 1 . . . Garrison Access 4 | . . . . . . . . 1 2 1 . . . Total Hacks 158 | . 20 . 19 . 1 . 29 25 16 34 1 1 12 Successful 88 | . 9 . 14 . 1 . 17 8 7 18 1 1 12 Failed 70 | . 11 . 5 . . . 12 17 9 16 . . . Catastrophic 7 | . 1 . . . . . 1 2 . 3 . . . Database Lockouts . | . . . . . . . . . . . . . . Manual 96 | . 19 . 15 . 1 . 24 17 4 16 . . . Terminals 133 | . 20 . 19 . . . 29 24 14 27 . . . Fabricators . | . . . . . . . . . . . . . . Repair Stations . | . . . . . . . . . . . . . . Recycling Units . | . . . . . . . . . . . . . . Scanalyzers 5 | . . . . . . . . . . 5 . . . Garrison Access 5 | . . . . . . . . 1 2 2 . . . Terminal Hacks 60 | . 5 . 9 . 1 . 14 5 4 8 1 1 12 Record 8 | . . . . . . . . . 1 . . . 7 Part Schematic 5 | . 1 . . . . . 1 1 . 2 . . . Robot Analysis 7 | . . . 2 . . . 5 . . . . . . Prototype ID Bank 5 | . . . . . . . . 1 . . . . 4 Open Door 3 | . . . . . . . . . . . 1 1 1 Level Access Points 2 | . . . . . . . 1 . . 1 . . . Branch Access Points 4 | . 1 . 1 . . . . 1 1 . . . . Terminal Index 5 | . 1 . 1 . . . 1 1 . 1 . . . Garrison Index 1 | . . . . . . . . . . 1 . . . Alert Level 1 | . . . . . . . 1 . . . . . . Unreport Threat 5 | . 1 . . . . . 1 1 2 . . . . Locate Traps 7 | . 1 . 2 . . . 3 . . 1 . . . Hauler Manifests 3 | . . . 1 . . . 1 . . 1 . . . Zone Layout 3 | . . . 2 . . . . . . 1 . . . EX-Prototype ID Bank 1 | . . . . . 1 . . . . . . . . Fabricator Hacks . | . . . . . . . . . . . . . . Repair Station Hacks . | . . . . . . . . . . . . . . Recycling Unit Hacks . | . . . . . . . . . . . . . . Scanalyzer 5 | . . . . . . . . . . 5 . . . Insert Component 2 | . . . . . . . . . . 2 . . . Analyze 3 | . . . . . . . . . . 3 . . . Garrison Access Hacks 4 | . . . . . . . . 1 2 1 . . . Seal Access 4 | . . . . . . . . 1 2 1 . . . Unauthorized Hacks 19 | . 4 . 5 . . . 3 2 1 4 . . . Terminals 19 | . 4 . 5 . . . 3 2 1 4 . . . Track 4 | . 2 . 2 . . . . . . . . . . Assimilate 1 | . . . . . . . . . 1 . . . . Botnet 10 | . 2 . 2 . . . 2 1 . 3 . . . Operators 4 | . . . 1 . . . 1 1 . 1 . . . Fabricators . | . . . . . . . . . . . . . . Repair Stations . | . . . . . . . . . . . . . . Recycling Units . | . . . . . . . . . . . . . . Scanalyzers . | . . . . . . . . . . . . . . Garrison Access . | . . . . . . . . . . . . . . Data Cores Recovered . | . . . . . . . . . . . . . . Used . | . . . . . . . . . . . . . . Hacking Detections 32 | . 5 . 5 . . . 6 5 4 7 . . . Full Trace Events 5 | . 1 . . . . . . 1 2 1 . . . Feedback Events . | . . . . . . . . . . . . . . Feedback Blocked . | . . . . . . . . . . . . . . Robot Schematics Acquired . | . . . . . . . . . . . . . . Robots Built . | . . . . . . . . . . . . . . Matter . | . . . . . . . . . . . . . . Time . | . . . . . . . . . . . . . . Total Robot Build Rating . | . . . . . . . . . . . . . . Part Schematics Acquired 7 | . 1 . . . . . 1 1 . 4 . . . Parts Built . | . . . . . . . . . . . . . . Matter . | . . . . . . . . . . . . . . Time . | . . . . . . . . . . . . . . Total Part Build Rating . | . . . . . . . . . . . . . . Parts Repaired . | . . . . . . . . . . . . . . Time . | . . . . . . . . . . . . . . Parts Recycled . | . . . . . . . . . . . . . . Recycled Matter . | . . . . . . . . . . . . . . Retrieved Matter . | . . . . . . . . . . . . . . Retrieved Components . | . . . . . . . . . . . . . . Parts Scanalyzed 2 | . . . . . . . . . . 2 . . . Part Schematics Acquired 2 | . . . . . . . . . . 2 . . . Parts Damaged . | . . . . . . . . . . . . . . Bothacking | -11 -10 -10 -9 -9 -9 -8 -8 -7 -6 -5 -5 -5 -5 ------------ Run | Scr Mat Min Mat Min Exi Min Mat Fac Fac Fac Upp Upp War Used RIF Installer . | . . . . . . . . . . . . . . Robots Hacked . | . . . . . . . . . . . . . . Non-combat . | . . . . . . . . . . . . . . Combat . | . . . . . . . . . . . . . . Robot Hacks Applied . | . . . . . . . . . . . . . . Relay Couplers Released . | . . . . . . . . . . . . . . Robots Rewired . | . . . . . . . . . . . . . . Allies Hacked . | . . . . . . . . . . . . . . Hacks Repelled . | . . . . . . . . . . . . . . Allies | -11 -10 -10 -9 -9 -9 -8 -8 -7 -6 -5 -5 -5 -5 -------- Run | Scr Mat Min Mat Min Exi Min Mat Fac Fac Fac Upp Upp War Total Allies 3 | . . . . . . . . 2 1 . . . . Largest Group 2 | . . . . . . . . 2 1 1 . . . Highest-Rated Group 62 | . . . . . . . . 62 31 10 . . . Highest-Rated Ally 31 | . . . . . . . . 31 31 10 . . . Total Orders . | . . . . . . . . . . . . . . Ally Attacks 31 | . . . . . . . . 27 4 . . . . Total Damage 472 | . . . . . . . . 409 63 . . . . Kills 7 | . . . . . . . . 7 . . . . . Allies Corrupted . | . . . . . . . . . . . . . . Allies Melted . | . . . . . . . . . . . . . . Intel | -11 -10 -10 -9 -9 -9 -8 -8 -7 -6 -5 -5 -5 -5 ------- Run | Scr Mat Min Mat Min Exi Min Mat Fac Fac Fac Upp Upp War Robot Analysis Total 7 | . . . 2 . . . 5 . . . . . . Derelict Logs Recovered 3 | . . . . 1 . . . . . . 1 1 . Drone Launches . | . . . . . . . . . . . . . . Drone Recoveries . | . . . . . . . . . . . . . . Exploration | -11 -10 -10 -9 -9 -9 -8 -8 -7 -6 -5 -5 -5 -5 ------------- Run | Scr Mat Min Mat Min Exi Min Mat Fac Fac Fac Upp Upp War Turns Passed 7944 | 106 587 49 368 116 510 208 501 1105 639 1662 402 451 1240 Spaces Moved 4147 | 41 299 22 173 65 317 127 245 565 333 840 233 221 666 Core 9 | 9 . . . . . . . . . . . . . Treads 4138 | 32 299 22 173 65 317 127 245 565 333 840 233 221 666 Legs . | . . . . . . . . . . . . . . Wheels . | . . . . . . . . . . . . . . Hover . | . . . . . . . . . . . . . . Flight . | . . . . . . . . . . . . . . Fastest Speed 50 | 50 160 160 160 160 160 160 163 156 156 157 162 162 160 Average Speed 159 | 135 160 160 160 160 160 162 163 156 157 158 162 162 163 Slowest Speed 182 | 160 160 160 160 160 160 163 163 175 180 180 162 162 182 Overloaded Moves . | . . . . . . . . . . . . . . Propulsion Burnouts . | . . . . . . . . . . . . . . Robots Hopped . | . . . . . . . . . . . . . . Cave-ins Triggered . | . . . . . . . . . . . . . . Exploration Rate (%) 36 | 3 67 8 27 16 62 57 27 22 10 28 52 46 84 Regions Visited 13 Branch Regions 7 Pre-discovered Areas . | . . . . . . . . . . . . . . Known Exits Taken 4 | . 1 . 1 . . . 1 . . . . 1 . Unknown Exits Taken 9 | 1 . 1 . 1 1 1 . 1 1 1 1 . . Scrap Searched 3 | . . . . . . 1 . . . . 1 1 . Spaces Dug 71 | . 4 . 1 . . . 9 15 8 31 . 3 . Terrain Destroyed 222 | . 20 6 3 13 . . 50 28 9 40 14 22 17 Melee 63 | . . . . . . . 9 15 8 31 . . . Projectile 28 | . 4 . 1 . . . . . 1 1 1 3 17 AOE 131 | . 16 6 2 13 . . 41 13 . 8 13 19 . Terrain Rammed . | . . . . . . . . . . . . . . Walls Destroyed . | . . . . . . . . . . . . . . Machines Disabled . | . . . . . . . . . . . . . . Actions | -11 -10 -10 -9 -9 -9 -8 -8 -7 -6 -5 -5 -5 -5 --------- Run | Scr Mat Min Mat Min Exi Min Mat Fac Fac Fac Upp Upp War Total 4891 | 69 351 26 217 71 320 128 297 696 400 1020 247 271 778 Wait 82 | 1 3 . . . . . 3 7 11 13 . . 44 Move 4134 | 40 298 21 172 64 316 126 244 564 332 839 232 220 666 Hop . | . . . . . . . . . . . . . . Pick Up 93 | 9 9 . 6 1 1 . 9 19 8 16 . 4 11 Fast Attach 29 | 4 . . 2 . 1 1 2 4 1 9 . . 5 Attach 39 | 3 . . 1 . . . 5 6 3 8 1 9 3 Detach 7 | . . . . . . . . 1 . 2 1 . 3 Swap 141 | 1 8 . 7 2 . . 7 35 14 38 9 10 10 Drop 71 | 1 6 . 6 1 2 1 3 17 7 14 . 2 11 Fire 230 | 10 27 5 23 3 . . 15 27 16 49 4 26 25 Melee 65 | . . . . . . . 9 16 8 32 . . . Ram . | . . . . . . . . . . . . . . Kick . | . . . . . . . . . . . . . . Crush . | . . . . . . . . . . . . . . Escape Stasis . | . . . . . . . . . . . . . . Rewire . | . . . . . . . . . . . . . . Trap . | . . . . . . . . . . . . . . Miscellaneous . | . . . . . . . . . . . . . . Route ------- -11/Scrapyard -10/Materials (discovered 3 exits: *Mat x2 / *Min) -10/Mines -9/Materials (discovered 3 exits: *Min / Sto x2) -9/Mines -9/Exiles -8/Mines (discovered 2 exits: *Mat x2) -8/Materials (discovered 3 exits: *Fac x3) -7/Factory (discovered 3 exits: *Fac / Low x2) -6/Factory (discovered 3 exits: *Fac / Low x2) -5/Factory (discovered 5 exits: *Fac x4 / *Upp) -5/Upper Caves -5/Upper Caves (discovered 2 exits: Fac / *War) -5/Warlord History --------- Turn | Location | Event 17 | -11/Scrapyard | Discovered new exit (range 15) 107 | -11/Scrapyard | Entered Materials 288 | -10/Materials | Discovered new exit (range 13) 318 | -10/Materials | Build established: Mutant 457 | -10/Materials | Identified exit to Mines 522 | -10/Materials | Discovered new exit (range 14) 694 | -10/Materials | Entered Mines 729 | -10/Mines | Discovered new exit (range 10) 743 | -10/Mines | Entered Materials 743 | -9/Materials | Evolved 2 slots: Propulsion x1, Utility x1 796 | -9/Materials | Identified exit to Mines 796 | -9/Materials | Identified exit to Storage 1111 | -9/Materials | Entered Mines 1129 | -9/Mines | A weapon hastily lodged in a ceiling crevice suddenly fell to the ground 1221 | -9/Mines | Deemed a non-threat by the Exiles lab entrance 1221 | -9/Mines | Discovered new exit (range 5) 1227 | -9/Mines | Entered Exiles 1264 | -9/Exiles | Met 8R-AWN 1295 | -9/Exiles | Met EX-HEX 1338 | -9/Exiles | Met EX-BIN 1355 | -9/Exiles | Aligned with FarCom system 1357 | -9/Exiles | Given EX-Vault access code 1394 | -9/Exiles | Opened EX-Vault 1404 | -9/Exiles | Found Trap Reconfigurator 1437 | -9/Exiles | Warned to stay clear of 0b10 Research branches 1480 | -9/Exiles | Met EX-DEC 1724 | -9/Exiles | Discovered new exit (range 10) 1737 | -9/Exiles | Left Exiles lab with Trap Reconfigurator 1737 | -9/Exiles | Entered Mines 1916 | -8/Mines | Discovered new exit (range 15) 1922 | -8/Mines | Discovered new exit (range 14) 1945 | -8/Mines | Entered Materials 1945 | -8/Materials | Evolved 2 slots: Utility x1, Weapon x1 1946 | -8/Materials | Identified exit to Factory 2446 | -8/Materials | Entered Factory 2446 | -7/Factory | Evolved 2 slots: Propulsion x1, Utility x1 2829 | -7/Factory | Discovered new exit (range 9) 2944 | -7/Factory | Allied Derelicts emerged from ambush trap array 3253 | -7/Factory | Identified exit to Lower Caves 3551 | -7/Factory | Entered another Factory area 3551 | -6/Factory | Accompanied by 1 ally 3551 | -6/Factory | Evolved 2 slots: Utility x2 3695 | -6/Factory | Build established: Hacker-Skirmisher 3976 | -6/Factory | Identified exit to Lower Caves 4040 | -6/Factory | Spotted B-75 Beast 4086 | -6/Factory | Discovered new exit (range 15) 4190 | -6/Factory | Entered another Factory area 4190 | -5/Factory | Accompanied by 1 ally 4190 | -5/Factory | Evolved 2 slots: Propulsion x1, Utility x1 4269 | -5/Factory | Build established: Hacker-Assassin 4871 | -5/Factory | Destroyed 9 combat bots 5331 | -5/Factory | Discovered new exit (range 14) 5465 | -5/Factory | Identified exit to Factory 5528 | -5/Factory | Discovered new exit (range 17) 5545 | -5/Factory | Spotted B-75 Beast 5589 | -5/Factory | Destroyed B-75 Beast 5852 | -5/Factory | Entered Upper Caves 6161 | -5/Upper Caves | Build established: Hauler-Skirmisher 6220 | -5/Upper Caves | Discovered new exit (range 18) 6254 | -5/Upper Caves | Entered another Upper Caves area 6255 | -5/Upper Caves | Identified exit to Warlord 6331 | -5/Upper Caves | Spotted B-75 Beast 6382 | -5/Upper Caves | Destroyed B-75 Beast 6412 | -5/Upper Caves | Lost 7 parts (3n1u3w) 6705 | -5/Upper Caves | Entered Warlord 6759 | -5/Warlord | System corruption cleaned by Quarantine Array 6877 | -5/Warlord | Build established: Hauler-Mutant 7302 | -5/Warlord | Build established: Hauler-Skirmisher 7458 | -5/Warlord | Visited the Vortex Lab 7470 | -5/Warlord | Warlord's base attacked by MAIN.C 7481 | -5/Warlord | Found Prototype Energy Gun 7481 | -5/Warlord | Identified Vortex Rail 7485 | -5/Warlord | Found Vortex Rail 7491 | -5/Warlord | Found Prototype Launcher 7597 | -5/Warlord | Met Warlord 7820 | -5/Warlord | Warlord forces counterattacked 7828 | -5/Warlord | Spotted Executioner 7841 | -5/Warlord | Destroyed Executioner 7901 | -5/Warlord | P-80 Master assimilated allied L9-QL3(l) 7905 | -5/Warlord | Spotted B-86 Titan 7908 | -5/Warlord | P-70 Sage assimilated allied V5-1H8(g) 7912 | -5/Warlord | Spotted Striker 7939 | -5/Warlord | P-70 Sage assimilated allied 64-29Q(g) 7945 | -5/Warlord | Self-destructed Last Messages --------------- 07936_ 5O-V94(M) reactivates. 07936_ Vortex penetrates Striker. 07936_ Vortex penetrates B-86 Titan. 07937_ 5O-V94(M) destroyed. 07937_ Striker destroyed. 07938_ P-70 Sage fails to hack 64-29Q(g). 07939_ P-70 Sage hacks 64-29Q(g), assimilated. 07939_ Vortex penetrates System Quarantine Field Array. 07940_ Cmb. Gravmag System fries itself beyond repair. 07940_ Imp. Treads destroyed. 07940_ 64-29Q(g) destroyed. 07941_ The unstable cave ceiling collapses. 07941_ P-70 Sage fails to hack TH-KSI(b). 07942_ Vortex penetrates B-86 Titan. 07942_ Vortex Rail implodes. 07943_ D-63 Destroyer shuts down. 07944_ Penetrated by Slug. 07944_ Vortex Rail destroyed. 07945_ TH-KSI(b) sneak attacks. 07945_ D-63 Destroyer system corrupted by crushing effect. Map ----- +----------------------------------------------------+ | ### # #######?############ ?????????????? | | ############# #####?######?##?#??###????????????? | | ############# ######?#?#?##?#?#?##????#?#????????? | | ######?###### ############?###?##?? ??##????##??? | | ############# ##################? ?#?#?##?##?? | | ############# ################### ? #??####?? ? ? | | ############# ################### ####???? ??? | | ############# ################### ??#?#?#?# ? | | ##?########## #################### ###??#? ??? | | ############# ########?######?###### #??#?#?? ? | | ############# ###?################## ?#?###? | | ## #### ########################? ##?#??? ? | | ## #### ##################?#?##?? ??###? ? | | ## #### ######################## ? | | ## # ## ######################### ### ##? | | ## ## # #######""###############?#? ??#? | | ## ###" ####?##""##########?######## ##?# | | ## #### #######""################### ##? | | ## !! #### #######""############?#####?# ### | | ## ! ! ## #* " ####""######### ########??# ## | | # #%! "####""## ## ########## ## | | # ![ # "" #####?##### # | | # *!#]% "" """"; ?#?#?## | | ##+#+# ==*=% %== ; ;###### | | ## =%[%=!= ! p%!% ;; ### | | + % %=%%!%% @ b ]= %i%% %% % ## | | ## %%%%!!% [= M%! = %BB % ### | | ## ! %%%! %M = = dBB % #### ##?# | | ### = =!=[% * * b % ; ### #### | | # ; "" = %"" # #?# #### | | # # "" " ########;#?### #### | | #### ###### "" ################# ### | | #### ######""###########??##?### ### | | ########### #######""##########?####### ### | | # # #######""################?# #### | | " #""" # #######""#######?#####?### ##?## | | "" #""" # #######""################# ###### | | " #""" # ########################## ###???# | | #""" # #########?##########?##### #####?## | | " #""" + #############?###########? #?###### | | "" # # ####?###################?? #?#### | | " #""" ## ####################?#### ?### | | #""" ## ######################?#? ## ### | | +###""" ## # ############## # ?##? ? ## | | ###""" ## # ############# #### ?## | | ###""" ## # """ ##?########## #### ? ## | | ### + + """ ############# ## ?#?## ? | | #####+#### # """ ################?# ##?##? | | ##### #### # ################# ??#####???## | | ###+###################??#?##??#?###? | +----------------------------------------------------+ Best States ------------- Heat Dissipation 40 Energy Generation 19 Energy Capacity 500 Matter Stores 300 Matter Capacity 300 Sight Range 16 Terrain Scan Range 24 Terrain Scan Density 210 Jamming Range 14 Armor Coverage 225 Resistance: KI 20 Resistance: TH 45 Resistance: EX 20 Resistance: EM 20 Resistance: I 20 Resistance: S 20 Resistance: P 20 Weapon Shielding 90 Weapon Cycling 20 Evasion (%) 50 Core Analysis 8 Recoil Reduction 5 Offensive Hacking 20 Defensive Hacking 10 Item Schematics ----------------- Hcp. Storage Unit | -10/Materials | Hacked Imp. Utility Shielding | -8/Materials | Hacked Weapon Cycler | -7/Factory | Hacked Imp. Weapon Cycler | -5/Factory | Scanalyzed Matter Compressor | -5/Factory | Scanalyzed Exp. Terrain Scan Processor | -5/Factory | Hacked Imp. Dynamic Insulation System | -5/Factory | Hacked Robot Schematics ------------------ None Fabricated ------------ Nothing Alien Tech Used ----------------- None Achievements -------------- None Challenges ------------ None Game ------ Seed DimensionalControlMatter Manual? 0 Play Time 01:57:04 Cumulative 228.6 hours Start 2021.09.05 @ 16:05:58 End 2021.09.05 @ 18:36:25 Sessions 1 Manual Loads 0 Difficulty Adventurer Special Mode None Game No. 96 Rogue 11 Adventurer 83 Explorer 2 Win Type - Total 11 Types 11/0/0/0/0/0/0/0/0 Lore% 37 Gallery% 72 Achievement% 46 Wizard Run 0 Options --------- ASCII 0 Keyboard 1 Movement Numpad Keybinds 0 Fullscreen 1 Font 36/TerminusFine Map View 76x50 Tactical HUD 1 Map Filters NONE Filters NONE Steam 1 RUN: e0867796-8543-4115-ac5b-1e66fcab79ac